Cogmind - Beta 13 @@@ ROGUE MODE // 2024.04.10 @ 10:32:43 Player: gabr Result: Destroyed self with Missile Launcher Performance ------------- Evolutions (2) 1000 Regions Visited (5) 1000 Robots Destroyed (80) 400 Value Destroyed (1565) 1565 Prototype IDs (3) 60 Alien Tech Used (0) 0 Bonus (199) 199 TOTAL SCORE: 4224 Bonus ------- High Alert Combat Kills 75 Follower Combat Kills 143 Friendly Fire -19 Cogmind --------- Core Integrity 0/550 Matter 18/300 Energy 100/100 System Corruption 0% Temperature Cool (0) Movement Walking (190) Ox1 Location -8/Materials Parts ------- > --- POWER (1) -------- (None) > --- PROPULSION (2) --- Carbon-fiber Leg > --- UTILITY (6) ------ Improved Cooling System Large Storage Unit Terrain Scan Processor Core Analyzer Armor Integrity Analyzer > --- WEAPON (2) ------- Missile Launcher > --- INVENTORY (15) --- Light Nuclear Core Light Nuclear Core Improved Aluminum Leg Carbon-fiber Leg Large Storage Unit Experimental Sensor Array Improved Terrain Scanner Utility Shielding Light Armor Plating System Shield High-powered Shotgun Mining Laser Mining Laser Peak State ------------ > --- POWER ------------ Cooled Ion Engine > --- PROPULSION ------- Carbon-fiber Leg Carbon-fiber Leg > --- UTILITY ---------- Improved Cooling System Large Storage Unit Improved Terrain Scanner Terrain Scan Processor Core Analyzer Armor Integrity Analyzer > --- WEAPON ----------- Ion Cannon Missile Launcher > --- INVENTORY -------- Light Nuclear Core Light Nuclear Core Improved Aluminum Leg Carbon-fiber Leg Large Storage Unit Experimental Sensor Array Improved Terrain Scanner Utility Shielding Light Armor Plating System Shield High-powered Shotgun Mining Laser Mining Laser [Rating: 36] Favorites ----------- Power Improved Ion Engine Engine Improved Ion Engine Power Core Light Nuclear Core Propulsion Aluminum Leg Leg Aluminum Leg Wheel Wheel Hover Unit Aerolev Unit Utility Improved Terrain Scanner Device Improved Terrain Scanner Storage Large Storage Unit Processor Terrain Scan Processor Protection Light Armor Plating Weapon Makeshift Shrapnel Gun Energy Gun Medium Laser Energy Cannon Ion Cannon Ballistic Gun Makeshift Shrapnel Gun Ballistic Cannon Light Cannon Launcher Missile Launcher Special Weapon Mining Laser Build | -11 -10 -10 -10 -9 -8 ------- Run | Yrd Mat Min Exi Min Mat Slots Evolved 4 | . . . . . 4 Power . | . . . . . . Propulsion . | . . . . . . Utility 4 | . . . . . 4 Weapon . | . . . . . . Parts Attached 83 | 7 7 14 2 8 45 Power 14 | 1 2 3 . . 8 Engine 8 | 1 2 3 . . 2 Core 6 | . . . . . 6 Reactor . | . . . . . . Propulsion 28 | 2 1 6 . 8 11 Treads . | . . . . . . Leg 19 | 2 1 1 . 5 10 Wheel 8 | . . 5 . 3 . Hover 1 | . . . . . 1 Flight . | . . . . . . Utility 18 | 2 2 1 . . 13 Device 8 | 1 . 1 . . 6 Storage 4 | 1 2 . . . 1 Processor 5 | . . . . . 5 Hackware . | . . . . . . Protection 1 | . . . . . 1 Artifact . | . . . . . . Weapon 23 | 2 2 4 2 . 13 Energy Gun 2 | 1 . . . . 1 Energy Cannon 1 | . . . . . 1 Ballistic Gun 16 | 1 2 4 2 . 7 Ballistic Cannon 2 | . . . . . 2 Launcher 1 | . . . . . 1 Special Weapon 1 | . . . . . 1 Impact Weapon . | . . . . . . Slashing Weapon . | . . . . . . Piercing Weapon . | . . . . . . Special Melee Weapon . | . . . . . . Unidentified Prototypes 3 | . . . . . 3 Parts Lost 15 | . . 2 . . 13 Power 2 | . . 1 . . 1 Propulsion 3 | . . 1 . . 2 Utility 5 | . . . . . 5 Weapon 5 | . . . . . 5 Highest Loss Streak 6 | . . 2 . . 6 To Critical Strikes . | . . . . . . Average Slot Usage (%) 98 | . 99 98 98 100 97 Engine 10 | . 13 13 14 14 7 Leg 15 | . 28 14 . 14 17 Wheel 7 | . . 12 28 13 . Device 18 | . 14 14 14 14 22 Storage 11 | . 14 14 14 14 9 Processor 8 | . . . . . 17 Protection 1 | . . . . . 2 Energy Gun 2 | . 14 5 . . . Ballistic Gun 20 | . 13 22 26 28 16 Naked Turns . | . . . . . . Heaviest Build 43 | 13 27 34 34 32 43 Greatest Support 32 | 20 20 20 20 20 32 Greatest Overweight (x) 3 | 3 1 3 1 3 2 Average Overweight (x) . | . . 1 1 1 1 Largest Inventory Capacity 15 | 8 15 15 15 15 15 Average Capacity 14 | 7 10 15 15 15 15 Most Carried 15 | 3 12 15 15 15 15 Average Carried 13 | 1 8 14 15 15 13 Final Capacity 15 | 8 15 15 15 15 15 Final Carried 15 | 3 12 15 15 15 13 Class Distribution -------------------- 66% | Scavenger-Mutant 19% | Mutant 13% | Commander-Mutant Dominant Class ---------------- Mutant | -10/Materials Scavenger-Mutant | -10/Mines Commander-Mutant | -10/Exiles Scavenger-Mutant | -9/Mines Scavenger-Mutant | -8/Materials Resources | -11 -10 -10 -10 -9 -8 ----------- Run | Yrd Mat Min Exi Min Mat Matter Collected 2199 | 273 182 313 86 164 1181 Remotely . | . . . . . . Salvage Created 2313 | 22 215 447 . 188 1441 Parts 177 | 3 14 53 . 17 90 Haulers Intercepted 5 | . 1 . . . 4 Recyclers Shooed 3 | . . 2 . . 1 Parts Field Recycled . | . . . . . . Retrieved Matter . | . . . . . . Parts Self-Destructed . | . . . . . . Prevented . | . . . . . . Kills | -11 -10 -10 -10 -9 -8 ------- Run | Yrd Mat Min Exi Min Mat Combat Hostiles Destroyed 44 | . 6 9 . . 29 Guns 35 | . 6 9 . . 20 Cannons 9 | . . . . . 9 Classes Destroyed 11 | 1 3 4 . . 3 Worker 5 | . 2 . . . 3 Builder 6 | . . 3 . . 3 Tunneler 13 | 1 1 4 . 5 2 Hauler 5 | . 1 . . . 4 Recycler 6 | . . 1 . 2 3 Mechanic 1 | . . . . . 1 Swarmer 19 | . 6 6 . . 7 Grunt 13 | . . 1 . . 12 Brawler 1 | . . . . . 1 Sentry 7 | . . 2 . . 5 Specialist 4 | . . . . . 4 Best Kill Streak 6 | 1 4 4 . 3 6 Combat Bots Only 4 | . 3 3 . . 4 Max Kills in Single Turn 2 | 1 1 1 . 2 2 Gunslinging . | . . . . . . Exploded . | . . . . . . Melee . | . . . . . . Uniques/NPCs Destroyed . | . . . . . . Combat | -11 -10 -10 -10 -9 -8 -------- Run | Yrd Mat Min Exi Min Mat Hostile Shots Fired 304 | . 23 74 . 2 205 Missed 95 | . 4 28 . . 63 Damage Taken 3245 | . 155 510 . 14 2566 Core 732 | . 30 142 . 7 553 Absorbed by Shields . | . . . . . . Regen/Repaired (Parts) 61 | . . . . . 61 Core Remaining (%) 64 | 100 . . . 28 . Volleys Fired 186 | 1 20 51 . 8 106 Largest 2 | 2 2 2 . 2 2 Hottest 124 | 70 70 73 . 48 124 Shots Fired 353 | 2 36 102 2 17 194 Gun 302 | 2 36 102 2 17 143 Cannon 41 | . . . . . 41 Launcher 8 | . . . . . 8 Special 2 | . . . . . 2 Kinetic 288 | 1 20 67 2 17 181 Thermal 57 | 1 16 35 . . 5 Explosive 8 | . . . . . 8 Electromagnetic . | . . . . . . Robot Hit Streak 11 | 1 6 11 . 6 10 Robot Miss Streak 8 | . 3 4 . 4 8 Penetration Max . | . . . . . . Secondary Targets 2 | . . 1 . . 1 Max Gunslinging Chain 1 | . . 1 . . 1 Shots Hit Robots 224 | 1 23 56 . 14 130 Core Hits 139 | 1 13 23 . 11 91 Critical Kills . | . . . . . . Critical Parts Destroyed 1 | . . 1 . . . Critical Strikes 11 | . 2 4 . . 5 Burn 5 | . 2 3 . . . Destroy 1 | . . 1 . . . Blast 5 | . . . . . 5 Melee Attacks . | . . . . . . Impact . | . . . . . . Slashing . | . . . . . . Piercing . | . . . . . . Sneak Attacks . | . . . . . . Combat Hostiles . | . . . . . . Follow-up Attacks . | . . . . . . Damage Inflicted 4047 | 13 297 672 . 277 2788 Guns 3103 | 13 297 672 . 277 1844 Cannons 479 | . . . . . 479 Explosions 441 | . . . . . 441 Melee . | . . . . . . Ramming . | . . . . . . Kinetic 3128 | 13 174 407 . 277 2257 Thermal 478 | . 123 265 . . 90 Explosive 441 | . . . . . 441 Electromagnetic . | . . . . . . Impact . | . . . . . . Slashing . | . . . . . . Piercing . | . . . . . . Highest Corruption 1 | . 1 1 1 1 . Average Corruption 1 | . 1 1 1 1 . Corruption Purged . | . . . . . . Corruption Blocked . | . . . . . . Effects 17 | . . 9 5 3 . Message Errors 3 | . . 2 . 1 . Matter Fused 1 | . . 1 . . . Heat Flow Errors 1 | . . . 1 . . Energy Discharges 4 | . . 2 1 1 . Data Loss (minor) 3 | . . 3 . . . Misfires 3 | . . . 2 1 . Alerts 2 | . . 1 1 . . Overload Shots . | . . . . . . Overflow Damage . | . . . . . . Projectiles . | . . . . . . Explosions . | . . . . . . Melee . | . . . . . . Knockbacks 6 | . . . . . 6 Impact . | . . . . . . Kinetic 4 | . . . . . 4 Secondary 2 | . . . . . 2 Self-Inflicted Damage 79 | . . . . . 79 Shots 2 | . . . . . 2 Rammed . | . . . . . . Targets Rammed . | . . . . . . Kicked . | . . . . . . Crushed . | . . . . . . Highest Temperature 235 | 9 54 197 235 . 30 Average Temperature 38 | 6 19 50 121 . 6 Received Heat Transfer 873 | . . 162 . . 711 Siege Activations . | . . . . . . Robots Corrupted . | . . . . . . Combat Hostiles . | . . . . . . Parts Fried . | . . . . . . Impact Corruptions . | . . . . . . Robots Melted . | . . . . . . Combat Hostiles . | . . . . . . Parts Melted 3 | . 2 1 . . . Heat Transferred 1678 | . 518 999 . . 161 Parts Sabotaged . | . . . . . . Parts Stolen . | . . . . . . Parts Stripped . | . . . . . . Power Chain Reactions . | . . . . . . Alert | -11 -10 -10 -10 -9 -8 ------- Run | Yrd Mat Min Exi Min Mat Peak Influence 555 | 5 209 140 . 98 555 Initial 10 | . 3 10 . . 1 Average 93 | 2 135 70 . 68 107 Maximum Alert Level 2 | . 1 . . . 2 Low Security (%) 88 | 100 74 100 . 100 81 Level 1 9 | . 25 . . . 15 Level 2 1 | . . . . . 3 Level 3 . | . . . . . . Level 4 . | . . . . . . Level 5 . | . . . . . . High Security . | . . . . . . Max Security . | . . . . . . Squads Dispatched 7 | . 1 . . . 6 Investigation 2 | . 1 . . . 1 Extermination . | . . . . . . Reinforcement 3 | . . . . . 3 Assault . | . . . . . . Garrison 2 | . . . . . 2 Intercept . | . . . . . . Searches Triggered . | . . . . . . Construction Impeded . | . . . . . . Haulers Reinforced . | . . . . . . Active Scanning Responses . | . . . . . . Cargo Convoy Interrupts . | . . . . . . Stealth | -11 -10 -10 -10 -9 -8 --------- Run | Yrd Mat Min Exi Min Mat Distress Signals 8 | . . . . . 8 Communications Jammed . | . . . . . . Distress Signals . | . . . . . . Times Spotted 75 | . 10 10 . 4 51 Peak Tracking Total 6 | . 3 3 . 4 6 Tactical Retreats 5 | . 1 . . 1 3 Traps | -11 -10 -10 -10 -9 -8 ------- Run | Yrd Mat Min Exi Min Mat Traps Triggered 2 | . 1 . . . 1 Indirectly . | . . . . . . Trap Hack Attempts . | . . . . . . Triggered . | . . . . . . Disarmed . | . . . . . . Reprogrammed . | . . . . . . Reused . | . . . . . . Traps Extracted . | . . . . . . Installed . | . . . . . . Triggered . | . . . . . . Machines | -11 -10 -10 -10 -9 -8 ---------- Run | Yrd Mat Min Exi Min Mat Machines Disabled . | . . . . . . Max in Single Turn . | . . . . . . Machines Repaired . | . . . . . . Machines Dismantled . | . . . . . . Machines Sabotaged . | . . . . . . Overloaded Fab Kills . | . . . . . . Hacking | -11 -10 -10 -10 -9 -8 --------- Run | Yrd Mat Min Exi Min Mat Machines Accessed 13 | . 2 . 3 1 7 Terminals 8 | . 2 . . 1 5 Fabricators . | . . . . . . Repair Stations 1 | . . . . . 1 Recycling Units 1 | . . . . . 1 Scanalyzers . | . . . . . . Garrison Access . | . . . . . . Total Hacks 37 | . 6 . 13 2 16 Successful 22 | . 1 . 13 1 7 Failed 15 | . 5 . . 1 9 Catastrophic 6 | . 2 . . 1 3 Database Lockouts . | . . . . . . Manual 9 | . 3 . . 1 5 Terminals 18 | . 6 . . 2 10 Fabricators . | . . . . . . Repair Stations 3 | . . . . . 3 Recycling Units 3 | . . . . . 3 Scanalyzers . | . . . . . . Garrison Access . | . . . . . . Terminal Hacks 18 | . 1 . 13 1 3 Record 14 | . . . 13 1 . Part Schematic 1 | . . . . . 1 Alert Level 1 | . . . . . 1 Unreport Threat 1 | . . . . . 1 Locate Traps 1 | . 1 . . . . Fabricator Hacks . | . . . . . . Repair Station Hacks 3 | . . . . . 3 Scan Component 1 | . . . . . 1 Repair 1 | . . . . . 1 Refit 1 | . . . . . 1 Recycling Unit Hacks 1 | . . . . . 1 Report Inventory 1 | . . . . . 1 Scanalyzer . | . . . . . . Garrison Access Hacks . | . . . . . . Unauthorized Hacks . | . . . . . . Terminals . | . . . . . . Fabricators . | . . . . . . Repair Stations . | . . . . . . Recycling Units . | . . . . . . Scanalyzers . | . . . . . . Garrison Access . | . . . . . . Data Cores Recovered . | . . . . . . Used . | . . . . . . Hacking Detections 8 | . 2 . . . 6 Full Trace Events 1 | . 1 . . . . Feedback Events 1 | . 1 . . . . Corruption 1 | . 1 . . . . Feedback Blocked . | . . . . . . Robot Schematics Acquired . | . . . . . . Robots Built . | . . . . . . Authchips . | . . . . . . Time . | . . . . . . Total Robot Build Rating . | . . . . . . Part Schematics Acquired 1 | . . . . . 1 Parts Built . | . . . . . . Authchips . | . . . . . . Time . | . . . . . . Total Part Build Rating . | . . . . . . Parts Repaired 1 | . . . . . 1 Time 44 | . . . . . 44 Parts Recycled . | . . . . . . Recycled Matter . | . . . . . . Retrieved Matter . | . . . . . . Retrieved Components . | . . . . . . Parts Scanalyzed . | . . . . . . Part Schematics Acquired . | . . . . . . Parts Damaged . | . . . . . . Bothacking | -11 -10 -10 -10 -9 -8 ------------ Run | Yrd Mat Min Exi Min Mat Used RIF Installer . | . . . . . . Robots Hacked . | . . . . . . Non-combat . | . . . . . . Combat . | . . . . . . Robot Hacks Applied . | . . . . . . Relay Couplers Released . | . . . . . . Fabnet Peak Effective % . | . . . . . . Robots Rewired 3 | . . . 3 . . Allies Hacked . | . . . . . . Hacks Repelled . | . . . . . . Allies | -11 -10 -10 -10 -9 -8 -------- Run | Yrd Mat Min Exi Min Mat Total Allies 6 | . . 3 3 . . Largest Group 6 | . . 3 6 6 2 Highest-Rated Group 77 | . . 40 77 77 29 Highest-Rated Ally 21 | . . 16 21 21 21 Total Orders . | . . . . . . Ally Attacks 33 | . . 1 . 25 7 Total Damage 335 | . . 15 . 224 96 Kills 11 | . . 1 . 8 2 Allies Corrupted . | . . . . . . Allies Melted . | . . . . . . Intel | -11 -10 -10 -10 -9 -8 ------- Run | Yrd Mat Min Exi Min Mat Robot Analysis Total . | . . . . . . Derelict Logs Recovered 2 | . . 1 . 1 . Drone Launches . | . . . . . . Drone Recoveries . | . . . . . . Exploration | -11 -10 -10 -10 -9 -8 ------------- Run | Yrd Mat Min Exi Min Mat Turns Passed 6088 | 94 407 1283 535 904 2865 Spaces Moved 2939 | 66 221 814 495 537 806 Core 24 | 24 . . . . . Treads . | . . . . . . Legs 1584 | 42 221 287 . 228 806 Wheels 1331 | . . 527 495 309 . Hover . | . . . . . . Flight . | . . . . . . Fastest Speed 50 | 50 120 95 95 95 120 Average Speed 143 | 118 145 132 95 135 191 Slowest Speed 330 | 200 190 330 95 330 260 Overloaded Moves . | . . . . . . Propulsion Burnouts . | . . . . . . Robots Hopped . | . . . . . . Cave-ins Triggered . | . . . . . . Exploration Rate (%) 56 | 5 36 79 89 75 52 Regions Visited 5 Branch Regions 3 Pre-discovered Areas 2 | . . 1 1 . . Known Exits Taken . | . . . . . . Unknown Exits Taken 5 | 1 1 1 1 1 . Scrap Searched 2 | . . 1 . 1 . Spaces Dug . | . . . . . . Terrain Destroyed 63 | . . . . . 63 Melee . | . . . . . . Projectile 1 | . . . . . 1 AOE 62 | . . . . . 62 Terrain Rammed . | . . . . . . Walls Destroyed . | . . . . . . Machines Disabled . | . . . . . . Actions | -11 -10 -10 -10 -9 -8 --------- Run | Yrd Mat Min Exi Min Mat Total 4483 | 76 272 929 564 703 1939 Wait 1118 | . 15 22 13 135 933 Move 2934 | 65 220 813 494 536 806 Hop . | . . . . . . Pick Up 41 | 3 7 11 3 4 13 Fast Attach 38 | 7 2 3 2 6 18 Attach 9 | . . 1 . . 8 Detach 3 | . . . . . 3 Swap 36 | . 5 10 . 2 19 Drop 71 | . 3 18 5 12 33 Fire 186 | 1 20 51 . 8 106 Melee . | . . . . . . Ram . | . . . . . . Kick . | . . . . . . Crush . | . . . . . . Escape Stasis . | . . . . . . Rewire 47 | . . . 47 . . Trap . | . . . . . . Miscellaneous . | . . . . . . Route ------- -11/Scrapyard -10/Materials -10/Mines (discovered 2 exits: *Exi / [Sub]) -10/Exiles -9/Mines -8/Materials (discovered 2 exits: [*Fac x2]) History --------- Turn | Location | Event 3 | -11/Scrapyard | Discovered new exit (range 15) 95 | -11/Scrapyard | Entered Materials 301 | -10/Materials | Build established: Mutant 422 | -10/Materials | Discovered new exit (range 12) 502 | -10/Materials | Entered Mines 597 | -10/Mines | Learned Materials stockpile data 929 | -10/Mines | Core integrity fell below 50% 1069 | -10/Mines | Discovered new exit (range 16) 1249 | -10/Mines | Learned location of Storage (-7) 1259 | -10/Mines | Build established: Scavenger-Mutant 1300 | -10/Mines | Assisted by bots powering up and referring to "LRC-V3" 1408 | -10/Mines | Deemed a non-threat by the Exiles lab entrance 1409 | -10/Mines | Discovered new exit (range 5) 1785 | -10/Mines | Entered Exiles 1785 | -10/Exiles | Found Exiles lab destroyed 1785 | -10/Exiles | Accompanied by 3 allies 2104 | -10/Exiles | Learned location of Zion (-7) 2208 | -10/Exiles | Build established: Commander-Mutant 2295 | -10/Exiles | Discovered new exit (range 14) 2320 | -10/Exiles | Entered Mines 2320 | -9/Mines | Accompanied by 6 allies 2774 | -9/Mines | Lost 3 allies 2883 | -9/Mines | Learned Materials stockpile data 3022 | -9/Mines | Found a damaged Exp. Sensor Array with a note attached 3026 | -9/Mines | Found Prototype Device 3047 | -9/Mines | Build established: Scavenger-Mutant 3178 | -9/Mines | Discovered new exit (range 12) 3224 | -9/Mines | Entered Materials 3224 | -8/Materials | Accompanied by 2 allies 3224 | -8/Materials | Evolved 4 slots: Utility x4 4631 | -8/Materials | Discovered new exit (range 12) 5105 | -8/Materials | Repaired Mak. Shrapnel Gun 5873 | -8/Materials | Garrison activated, responded to threat 5877 | -8/Materials | Discovered new exit (range 15) 5938 | -8/Materials | Core integrity fell below 50% 5962 | -8/Materials | Lost 3 parts (2u1w) 6032 | -8/Materials | Garrison activated, responded to threat 6077 | -8/Materials | Core integrity fell below 20% 6089 | -8/Materials | Destroyed self with Missile Launcher Last Messages --------------- 06078_ Penetrated by Slug. 06078_ Carbon-fiber Leg destroyed. 06079_ Acquired 7 matter. 06079_ R-06 Scavenger collects Targeting Computer. 06080_ K-01 Serf collects debris. 06081_ U-05 Engineer lays Concrete. 06081_ K-01 Serf destroyed. 06082_ Cld. Ion Engine destroyed. 06082_ U-05 Engineer lays Concrete. 06082_ R-06 Scavenger collects Carbon-fiber Leg. 06083_ K-01 Serf collects debris. 06083_ Acquired 33 matter. 06084_ U-05 Engineer lays Concrete. 06085_ K-01 Serf destroyed. 06085_ R-06 Scavenger collects Pulse Rifle. 06086_ U-05 Engineer lays Concrete. 06086_ K-01 Serf collects debris. 06087_ U-05 Engineer builds a Wall. 06088_ Critical hit (Burn: +37). 06089_ U-05 Engineer destroyed. Map ----- +----------------------------------------------------+ | | | | | ????????????????#?#?#?#?#?##?######??????????????? | | ?????????????????#???#?##?#?#####?#?##???????????? | | ?????????????????####??###?######???#????????????? | | ????????????????########?#???#?#######???????????? | | ?????????????#?#???##### ? ? ????##?##???????????? | | ????????????#?#?##?##### ? ??#?#?###??#?????????? | | ???????????#??###### #?""? ##?######?#???[????? | | ???????????##?? # < # "Y ? ##?####?##?????????? | | ???????????##? ? # # "" ######?###?????????? | | ???????????##? ? + #####? ? ###???????? | | ???????????## ########## ? ?? ??? | | ????????##?## == ###### ? ? ? ? | | ??????????"?# % ###### ? ####?#???## | | ?????? ??"T?##### #######+#######? ?? | | ????????? ## # "??? | | ???????? ?"? """ !%= ## ! #?""??? | | ?????????""" """ "## " "" #???? ? | | ???? ??? """ """ H! # T## "R?" ? # ?" | | ??????????? k% # [ # """" #?"?? ? | | ??? ###+## **##%!%*############### "???" | | ??? = =% % #/########## # ?"" ? | | ??? =%g g %% r% # ? ? | | ????? #### #### w%%% k ###?##? | | ?????? ??#?#?#### ! @ % ####?## | | ??????#??# ########%% % ############## #?##??? | | ??????????+?#?##### ##"################ ##?###?# | | ??????? ? ? #####?# ## ################ #? #? | | ??????? ?"? ##?#?## ################### # ?? | | ?????????""??#??#?# ################### = #?? | | ????????""??####### ############ = # ### | | ??????? ?? ???#### ############ = # # #? | | ?????????????#?#### ###### # #######? | | ??????????????##### ###### # ###?#### | | ??????????? ####### ###### # #?###### | | ?????????? ?###### ###### # #####?## | | ???##?###?######### ###### # ]######## | | ?? #?#?############ ###### #!!! = #?#?###? | | ?????############# ##### #!!! #### | | ???#?############# + # ! #### ??? | | "??############### ##### ! #![[ #?##? | | ?" ############### ##### % #[ [ #??# ? | | ############### ##### #[[! #### # | | ################## ##### =%# = """ #### ?? | | ################## #######+### """ #### # | | ################## =* """ ? | | ################## / | | ################## %! # | | ### ###############+######### ############## # | +----------------------------------------------------+ Best States ------------- Heat Dissipation 58 Energy Generation 14 Energy Capacity 280 Matter Stores 300 Matter Capacity 300 Sight Range 16 Terrain Scan Range 16 Terrain Scan Density 235 Armor Coverage 150 Evasion (%) 55 Core Analysis 6 Armor Integrity Analysis 30 Recoil Reduction 4 Item Schematics ----------------- Imp. Terrain Scan Processor | -8/Materials | Hacked Robot Schematics ------------------ None Fabricated ------------ Nothing Alien Tech Used ----------------- None Achievements -------------- None Challenges ------------ None Game ------ Seed MeleeSwordMeganuke Manual? 0 Play Time 00:32:59 Cumulative 75.8 hours Start 2024.04.10 @ 09:54:37 End 2024.04.10 @ 10:32:43 Sessions 1 Manual Loads 0 Difficulty Rogue Special Mode None Game No. 160 Rogue 160 Adventurer 0 Explorer 0 Win Type - Total 0 Types 0/0/0/0/0/0/0/0/0 Lore% 28 Gallery% 43 Achievement% 32 Wizard Run 0 Options --------- Layout 0 ASCII 0 Keyboard 1 Movement Numpad Keybinds 0 Fullscreen 1 Font 24/Terminus Map View 76x50 Zoom Use 0% Tactical HUD 1 Map Filters NONE Filters NONE Steam 1 RUN: 49729bcc-c760-4077-87a5-dec42afc590e